Workbook

Sheet Лист1
B1: МАОУ "Троельжанская СОШ" | E1: Утвердил: | F1: должность | G1: директор
F2: фамилия | G2: Мясникова Т.А.
D3: 7-11 лет | F3: дата | G3: 12 | H3: 10 | I3: 2023
G4: день | H4: месяц | I4: год
A5: День недели | B5: Прием пищи | C5: Раздел меню | D5: Блюда | E5: Вес блюда, г | F5: Белки | G5: Жиры | H5: Углеводы | I5: Калорийность | J5: № рецептуры | K5: Цена
A6: 1 | B6: Завтрак | C6: гор.блюдо | D6: Тефтели рыб.с соусом /кар.пюре/капус.туш/булочка | E6: 310 | F6: 88.76 | G6: 443 | H6: 17.35 | I6: 16.3 | J6: 56.35 | K6: =SUM(E6:J6) -> 931.76
C8: гор.напиток | D8: Чай с сахаром | E8: 200 | F8: 4.5 | G8: 60 | H8: 0.1 | J8: 15 | K8: =SUM(E8:J8) -> 279.6
C9: хлеб | D9: Хлеб пшеничный | E9: 30 | F9: 3 | G9: 71 | H9: 2.28 | I9: 0.24 | J9: 14.76 | K9: =SUM(E9:J9) -> 121.28
C10: фрукты
C13: итого | E13: =SUM(E6:E12) -> 540 | F13: 96.26 | G13: 574 | H13: 19.73 | I13: 16.54 | K13: =SUM(K6:K12) -> 1332.64
A14: =A6 -> 1 | B14: Обед | C14: закуска
C15: 1 блюдо
C16: 2 блюдо
C17: гарнир
C18: напиток
C19: хлеб бел.
C20: хлеб черн.
C23: итого | E23: =SUM(E14:E22) -> 0 | F23: 0 | G23: 0 | H23: 0 | I23: 0 | K23: =SUM(K14:K22) -> 0
A24: =A6 -> 1 | B24: Итого за день: | E24: =E13+E23 -> 540 | F24: 96.26 | G24: 574 | H24: 19.73 | I24: 16.54 | K24: =K13+K23 -> 1332.64
A25: 2 | B25: Завтрак | C25: гор.блюдо | D25: Фрикадельки из кур с соусом/каша гречневкая/огурец/сыр | E25: 305 | F25: 83.06 | G25: 440 | H25: 21.8 | I25: 25.21 | J25: 33.81 | K25: =SUM(E25:J25) -> 908.88
C27: гор.напиток | D27: Напиток из шиповника | E27: 200 | F27: 9.2 | G27: 97 | H27: 0.7 | I27: 0.3 | J27: 22.8 | K27: =SUM(E27:J27) -> 330
C28: хлеб | D28: Хлеб пшеничный | E28: 40 | F28: 4 | G28: 94 | H28: 3.04 | I28: 0.32 | J28: 19.68 | K28: =SUM(E28:J28) -> 161.04
C29: фрукты
C32: итого | E32: =SUM(E25:E31) -> 545 | F32: 96.26 | G32: 631 | H32: 25.54 | I32: 25.83 | K32: =SUM(K25:K31) -> 1399.92
A33: =A25 -> 2 | B33: Обед | C33: закуска | D33: Вафли | E33: 60 | F33: 0.84 | G33: 0.99 | H33: 23.19 | I33: 105 | K33: 8.96
C34: 1 блюдо
C35: 2 блюдо | D35: Тефтели из говядины в молочном соусе | E35: 100 | F35: 10.3 | G35: 10.7 | H35: 8 | I35: 170 | K35: 51.2
C36: гарнир | D36: Картофельное пюре | E36: 150 | F36: 3.15 | G36: 6.6 | H36: 16.35 | I36: 138 | K36: 19.4
C37: напиток | D37: Напиток из шиповника | E37: 200 | F37: 0.7 | G37: 0.3 | H37: 22.8 | I37: 97 | K37: 9.2
C38: хлеб бел.
C39: хлеб черн. | D39: Хлеб ржаной | E39: 30 | F39: 1.98 | G39: 0.36 | H39: 10.02 | I39: 52.2 | K39: 3
C42: итого | E42: =SUM(E33:E41) -> 540 | F42: 16.97 | G42: 18.95 | H42: 80.36 | I42: 562.2 | K42: =SUM(K33:K41) -> 91.76
A43: =A25 -> 2 | B43: Итого за день: | E43: =E32+E42 -> 1085 | F43: 113.23 | G43: 649.95 | H43: 105.9 | I43: 588.03 | K43: =K32+K42 -> 1491.68
A44: 3 | B44: Завтрак | C44: гор.блюдо | D44: Тефтели из гов.в мол.соусе/рагу овощное/печенье | E44: 310 | F44: 78.23 | G44: 576 | H44: 17.66 | I44: 26.81 | J44: 65.79 | K44: =SUM(E44:J44) -> 1074.49
C46: гор.напиток | D46: Кофейный напиток с молоком | E46: 200 | F46: 15.03 | G46: 79 | H46: 3.2 | I46: 2.7 | J46: 15.9 | K46: =SUM(E46:J46) -> 315.83
C47: хлеб | D47: Хлеб пшеничный | E47: 30 | F47: 3 | G47: 71 | H47: 2.28 | I47: 0.24 | J47: 14.76 | K47: =SUM(E47:J47) -> 121.28
C48: фрукты
C51: итого | E51: =SUM(E44:E50) -> 540 | F51: 96.26 | G51: 726 | H51: 23.14 | I51: 29.75 | K51: =SUM(K44:K50) -> 1511.6
A52: =A44 -> 3 | B52: Обед | C52: закуска
C53: 1 блюдо
C54: 2 блюдо
C55: гарнир
C56: напиток
C57: хлеб бел.
C58: хлеб черн.
C61: итого | E61: =SUM(E52:E60) -> 0 | F61: 0 | G61: 0 | H61: 0 | I61: 0 | K61: =SUM(K52:K60) -> 0
A62: =A44 -> 3 | B62: Итого за день: | E62: =E51+E61 -> 540 | F62: 96.26 | G62: 726 | H62: 23.14 | I62: 29.75 | K62: =K51+K61 -> 1511.6
A63: 4 | B63: Завтрак | C63: гор.блюдо | D63: Биточки рыб.с соусом/рис отв./булочка | E63: 310 | F63: 77.29 | G63: 488 | H63: 18.12 | I63: 11.93 | J63: 76.76 | K63: =SUM(E63:J63) -> 982.1
C65: гор.напиток | D65: Какао с молоком | E65: 200 | F65: 15.97 | G65: 144 | H65: 3.6 | I65: 3.3 | J65: 25 | K65: =SUM(E65:J65) -> 391.87
C66: хлеб | D66: Хлеб пшеничный | E66: 30 | F66: 3 | G66: 71 | H66: 2.28 | I66: 0.24 | J66: 14.76 | K66: =SUM(E66:J66) -> 121.28
C67: фрукты
C70: итого | E70: =SUM(E63:E69) -> 540 | F70: 96.26 | G70: 703 | H70: 24 | I70: 15.47 | K70: =SUM(K63:K69) -> 1495.25
A71: =A63 -> 4 | B71: Обед | C71: закуска
C72: 1 блюдо
C73: 2 блюдо
C74: гарнир
C75: напиток
C76: хлеб бел.
C77: хлеб черн.
C80: итого | E80: =SUM(E71:E79) -> 0 | F80: 0 | G80: 0 | H80: 0 | I80: 0 | K80: =SUM(K71:K79) -> 0
A81: =A63 -> 4 | B81: Итого за день: | E81: =E70+E80 -> 540 | F81: 96.26 | G81: 703 | H81: 24 | I81: 15.47 | K81: =K70+K80 -> 1495.25
A82: 5 | B82: Завтрак | C82: гор.блюдо | D82: Фрикадельки из кур с соусом/мак.изд.отв/каб.икра/сыр | E82: 275 | F82: 83.06 | G82: 376 | H82: 19.78 | I82: 18.73 | J82: 34.15 | K82: =SUM(E82:J82) -> 806.72
C84: гор.напиток | D84: Напиток из шиповника | E84: 200 | F84: 9.2 | G84: 97 | H84: 1 | I84: 0 | J84: 23 | K84: =SUM(E84:J84) -> 330.2
C85: хлеб | D85: Хлеб пшеничный | E85: 40 | F85: 4 | G85: 94 | H85: 3.04 | I85: 0.32 | J85: 19.68 | K85: =SUM(E85:J85) -> 161.04
C86: фрукты
C89: итого | E89: =SUM(E82:E88) -> 515 | F89: 96.26 | G89: 567 | H89: 23.82 | I89: 19.05 | K89: =SUM(K82:K88) -> 1297.96
A90: =A82 -> 5 | B90: Обед | C90: закуска
C91: 1 блюдо
C92: 2 блюдо
C93: гарнир
C94: напиток
C95: хлеб бел.
C96: хлеб черн.
C99: итого | E99: =SUM(E90:E98) -> 0 | F99: 0 | G99: 0 | H99: 0 | I99: 0 | K99: =SUM(K90:K98) -> 0
A100: =A82 -> 5 | B100: Итого за день: | E100: =E89+E99 -> 515 | F100: 96.26 | G100: 567 | H100: 23.82 | I100: 19.05 | K100: =K89+K99 -> 1297.96
A101: 1 | B101: Завтрак | C101: гор.блюдо | D101: Тефтели из гов.с соусом/каша греч/булочка | E101: 310 | F101: 78.39 | G101: 585 | H101: 21.47 | I101: 25.36 | J101: 67.75 | K101: =SUM(E101:J101) -> 1087.97
C103: гор.напиток | D103: Компот из смеси сухофруктов | E103: 200 | F103: 14.87 | G103: 110 | H103: 0.5 | J103: 27 | K103: =SUM(E103:J103) -> 352.37
C104: хлеб | D104: Хлеб пшеничный | E104: 30 | F104: 3 | G104: 71 | H104: 2 | I104: 0 | J104: 15 | K104: =SUM(E104:J104) -> 121
C105: фрукты
C108: итого | E108: =SUM(E101:E107) -> 540 | F108: 96.26 | G108: 766 | H108: 23.97 | I108: 25.36 | K108: =SUM(K101:K107) -> 1561.34
A109: =A101 -> 1 | B109: Обед | C109: закуска
C110: 1 блюдо
C111: 2 блюдо
C112: гарнир
C113: напиток
C114: хлеб бел.
C115: хлеб черн.
C118: итого | E118: =SUM(E109:E117) -> 0 | F118: 0 | G118: 0 | H118: 0 | I118: 0 | K118: =SUM(K109:K117) -> 0
A119: =A101 -> 1 | B119: Итого за день: | E119: =E108+E118 -> 540 | F119: 96.26 | G119: 766 | H119: 23.97 | I119: 25.36 | K119: =K108+K118 -> 1561.34
A120: 2 | B120: Завтрак | C120: гор.блюдо | D120: Рыба.туш.с овощами/карт.пюре/кап.туш./вафли | E120: 310 | F120: 84.06 | G120: 436 | H120: 14.5 | I120: 13.32 | J120: 63.43 | K120: =SUM(E120:J120) -> 921.31
C122: гор.напиток | D122: Напиток из шиповника | E122: 200 | F122: 9.2 | G122: 97 | H122: 1 | I122: 0 | J122: 23 | K122: =SUM(E122:J122) -> 330.2
C123: хлеб | D123: Хлеб пшеничный | E123: 30 | F123: 3 | G123: 71 | H123: 2 | I123: 0 | J123: 15 | K123: =SUM(E123:J123) -> 121
C124: фрукты
C127: итого | E127: =SUM(E120:E126) -> 540 | F127: 96.26 | G127: 604 | H127: 17.5 | I127: 13.32 | K127: =SUM(K120:K126) -> 1372.51
A128: =A120 -> 2 | B128: Обед | C128: закуска
C129: 1 блюдо
C130: 2 блюдо
C131: гарнир
C132: напиток
C133: хлеб бел.
C134: хлеб черн.
C137: итого | E137: =SUM(E128:E136) -> 0 | F137: 0 | G137: 0 | H137: 0 | I137: 0 | K137: =SUM(K128:K136) -> 0
A138: =A120 -> 2 | B138: Итого за день: | E138: =E127+E137 -> 540 | F138: 96.26 | G138: 604 | H138: 17.5 | I138: 13.32 | K138: =K127+K137 -> 1372.51
A139: 3 | B139: Завтрак | C139: гор.блюдо | D139: Фрикадельки из кур с соусом/мак.изд.отв/каб.икра /сгущ.мол.вар | E139: 275 | F139: 77.23 | G139: 373 | H139: 16.1 | I139: 15.21 | J139: 45.25 | K139: =SUM(E139:J139) -> 801.79
C141: гор.напиток | D141: Кофейный напиток с молоком | E141: 200 | F141: 15.03 | G141: 79 | H141: 3 | I141: 3 | J141: 16 | K141: =SUM(E141:J141) -> 316.03
C142: хлеб | D142: Хлеб пшеничный | E142: 40 | F142: 4 | G142: 94 | H142: 3 | I142: 0 | J142: 20 | K142: =SUM(E142:J142) -> 161
C143: фрукты
C146: итого | E146: =SUM(E139:E145) -> 515 | F146: 96.26 | G146: 546 | H146: 22.1 | I146: 18.21 | K146: =SUM(K139:K145) -> 1278.82
A147: =A139 -> 3 | B147: Обед | C147: закуска
C148: 1 блюдо
C149: 2 блюдо
C150: гарнир
C151: напиток
C152: хлеб бел.
C153: хлеб черн.
C156: итого | E156: =SUM(E147:E155) -> 0 | F156: 0 | G156: 0 | H156: 0 | I156: 0 | K156: =SUM(K147:K155) -> 0
A157: =A139 -> 3 | B157: Итого за день: | E157: =E146+E156 -> 515 | F157: 96.26 | G157: 546 | H157: 22.1 | I157: 18.21 | K157: =K146+K156 -> 1278.82
A158: 4 | B158: Завтрак | C158: гор.блюдо | D158: Тефтели из гов.в мол.соусе/каша гречневая/Яблоко | E158: 350 | F158: 84.07 | G158: 429 | H158: 17.57 | I158: 20.76 | J158: 42.25 | K158: =SUM(E158:J158) -> 943.65
C160: гор.напиток | D160: Компот из свежих фруктов | E160: 200 | F160: 9.19 | G160: 96 | H160: 0.5 | I160: 0.2 | J160: 23.1 | K160: =SUM(E160:J160) -> 328.99
C161: хлеб | D161: Хлеб пшеничный | E161: 30 | F161: 3 | G161: 71 | H161: 2 | I161: 0 | J161: 15 | K161: =SUM(E161:J161) -> 121
C162: фрукты
C165: итого | E165: =SUM(E158:E164) -> 580 | F165: 96.26 | G165: 596 | H165: 20.07 | I165: 20.96 | K165: =SUM(K158:K164) -> 1393.64
A166: =A158 -> 4 | B166: Обед | C166: закуска
C167: 1 блюдо
C168: 2 блюдо
C169: гарнир
C170: напиток
C171: хлеб бел.
C172: хлеб черн.
C175: итого | E175: =SUM(E166:E174) -> 0 | F175: 0 | G175: 0 | H175: 0 | I175: 0 | K175: =SUM(K166:K174) -> 0
A176: =A158 -> 4 | B176: Итого за день: | E176: =E165+E175 -> 580 | F176: 96.26 | G176: 596 | H176: 20.07 | I176: 20.96 | K176: =K165+K175 -> 1393.64
A177: 5 | B177: Завтрак | C177: гор.блюдо | D177: Кнели из кур с соусом /рис отв/Яблоко | E177: 350 | F177: 77.23 | G177: 436 | H177: 14.45 | I177: 18.75 | J177: 51.75 | K177: =SUM(E177:J177) -> 948.18
C179: гор.напиток | D179: Кофейный напиток с молоком | E179: 200 | F179: 15.03 | G179: 79 | H179: 3.2 | I179: 2.7 | J179: 15.9 | K179: =SUM(E179:J179) -> 315.83
C180: хлеб | D180: Хлеб пшеничный | E180: 40 | F180: 4 | G180: 94 | H180: 3 | I180: 0 | J180: 20 | K180: =SUM(E180:J180) -> 161
C181: фрукты
C184: итого | E184: =SUM(E177:E183) -> 590 | F184: 96.26 | G184: 609 | H184: 20.65 | I184: 21.45 | K184: =SUM(K177:K183) -> 1425.01
A185: =A177 -> 5 | B185: Обед | C185: закуска
C186: 1 блюдо
C187: 2 блюдо
C188: гарнир
C189: напиток
C190: хлеб бел.
C191: хлеб черн.
C194: итого | E194: =SUM(E185:E193) -> 0 | F194: 0 | G194: 0 | H194: 0 | I194: 0 | K194: =SUM(K185:K193) -> 0
A195: =A177 -> 5 | B195: Итого за день: | E195: =E184+E194 -> 590 | F195: 96.26 | G195: 609 | H195: 20.65 | I195: 21.45 | K195: =K184+K194 -> 1425.01
B196: Среднее значение за период: | E196: =(E24+E43+E62+E81+E100+E119+E138+E157+E176+E195)/(IF(E24=0,0,1)+IF(E43=0,0,1)+IF(E62=0,0,1)+IF(E81=0,0,1)+IF(E100=0,0,1)+IF(E119=0,0,1)+IF(E138=0,0,1)+IF(E157=0,0,1)+IF(E176=0,0,1)+IF(E195=0,0,1)) -> 598.5 | F196: 97.957 | G196: 634.095 | H196: 30.088 | I196: 76.814 | K196: =(K24+K43+K62+K81+K100+K119+K138+K157+K176+K195)/(IF(K24=0,0,1)+IF(K43=0,0,1)+IF(K62=0,0,1)+IF(K81=0,0,1)+IF(K100=0,0,1)+IF(K119=0,0,1)+IF(K138=0,0,1)+IF(K157=0,0,1)+IF(K176=0,0,1)+IF(K195=0,0,1)) -> 1416.045
